Cogmind - Beta 13 @@@ ROGUE MODE // 2024.08.05 @ 20:47:37 Player: Edstelm Result: Destroyed by as-74613 with Assembled Rifle Performance ------------- Evolutions (0) 0 Regions Visited (0) 0 Robots Destroyed (6) 30 Value Destroyed (42) 42 Prototype IDs (0) 0 Alien Tech Used (0) 0 Bonus (0) 0 TOTAL SCORE: 72 Bonus ------- None Cogmind --------- Core Integrity 0/250 Matter 300/300 Energy 100/100 System Corruption 2% Temperature Cool (0) Movement Core (50) Location -11/Scrapyard Parts ------- > --- POWER (1) -------- (None) > --- PROPULSION (2) --- (None) > --- UTILITY (2) ------ (None) > --- WEAPON (2) ------- (None) > --- INVENTORY (5) ---- (None) Peak State ------------ > --- POWER ------------ Light Ion Engine > --- PROPULSION ------- Wheel Compact Wheel > --- UTILITY ---------- Improved Terrain Scanner Seismic Detector > --- WEAPON ----------- Small Laser Mining Laser > --- INVENTORY -------- (None) [Rating: 9] Favorites ----------- Power Light Ion Engine Engine Light Ion Engine Propulsion Compact Wheel Wheel Compact Wheel Utility Improved Terrain Scanner Device Improved Terrain Scanner Weapon Small Laser Energy Gun Small Laser Special Weapon Mining Laser Build | -11 ------- Run | Yrd Slots Evolved . | . Power . | . Propulsion . | . Utility . | . Weapon . | . Parts Attached 7 | 7 Power 1 | 1 Engine 1 | 1 Core . | . Reactor . | . Propulsion 2 | 2 Treads . | . Leg . | . Wheel 2 | 2 Hover . | . Flight . | . Utility 2 | 2 Device 2 | 2 Storage . | . Processor . | . Hackware . | . Protection . | . Artifact . | . Weapon 2 | 2 Energy Gun 1 | 1 Energy Cannon . | . Ballistic Gun . | . Ballistic Cannon . | . Launcher . | . Special Weapon 1 | 1 Impact Weapon . | . Slashing Weapon . | . Piercing Weapon . | . Special Melee Weapon . | . Unidentified Prototypes . | . Parts Lost 7 | 7 Power 1 | 1 Propulsion 2 | 2 Utility 2 | 2 Weapon 2 | 2 Highest Loss Streak 7 | 7 To Critical Strikes . | . Average Slot Usage (%) . | . Naked Turns . | . Heaviest Build 7 | 7 Greatest Support 26 | 26 Greatest Overweight (x) . | . Average Overweight (x) . | . Largest Inventory Capacity 5 | 5 Average Capacity 5 | 5 Most Carried . | . Average Carried . | . Final Capacity 5 | 5 Final Carried . | . Class Distribution -------------------- None Dominant Class ---------------- None Resources | -11 ----------- Run | Yrd Matter Collected 270 | 270 Remotely . | . Salvage Created 130 | 130 Parts 12 | 12 Haulers Intercepted . | . Recyclers Shooed . | . Parts Field Recycled . | . Retrieved Matter . | . Parts Self-Destructed . | . Prevented . | . Kills | -11 ------- Run | Yrd Combat Hostiles Destroyed 1 | 1 Guns 1 | 1 Classes Destroyed 2 | 2 Tunneler 6 | 6 Assembled 1 | 1 Best Kill Streak 2 | 2 Combat Bots Only 1 | 1 Max Kills in Single Turn 1 | 1 Gunslinging . | . Exploded . | . Melee . | . Uniques/NPCs Destroyed . | . Combat | -11 -------- Run | Yrd Hostile Shots Fired 46 | 46 Missed 13 | 13 Damage Taken 511 | 511 Core 260 | 260 Absorbed by Shields . | . Core Remaining (%) . | . Volleys Fired 52 | 52 Largest 1 | 1 Hottest 100 | 100 Shots Fired 52 | 52 Gun 48 | 48 Cannon . | . Launcher . | . Special 4 | 4 Kinetic . | . Thermal 52 | 52 Explosive . | . Electromagnetic . | . Robot Hit Streak 7 | 7 Robot Miss Streak 3 | 3 Penetration Max . | . Secondary Targets . | . Shots Hit Robots 28 | 28 Core Hits 10 | 10 Critical Kills . | . Critical Parts Destroyed . | . Critical Strikes . | . Melee Attacks . | . Impact . | . Slashing . | . Piercing . | . Sneak Attacks . | . Combat Hostiles . | . Follow-up Attacks . | . Damage Inflicted 328 | 328 Guns 301 | 301 Cannons . | . Explosions . | . Melee . | . Ramming 27 | 27 Kinetic . | . Thermal 301 | 301 Explosive . | . Electromagnetic . | . Impact . | . Slashing . | . Piercing . | . Highest Corruption 2 | 2 Average Corruption 2 | 2 Corruption Purged . | . Corruption Blocked . | . Overload Shots . | . Overflow Damage . | . Projectiles . | . Explosions . | . Melee . | . Knockbacks . | . Impact . | . Kinetic . | . Secondary . | . Self-Inflicted Damage 12 | 12 Shots . | . Rammed 8 | 8 Targets Rammed 8 | 8 Kicked . | . Crushed . | . Highest Temperature 110 | 110 Average Temperature 39 | 39 Received Heat Transfer 200 | 200 Siege Activations . | . Robots Corrupted . | . Combat Hostiles . | . Parts Fried . | . Impact Corruptions . | . Robots Melted . | . Combat Hostiles . | . Parts Melted 1 | 1 Heat Transferred 700 | 700 Parts Sabotaged . | . Parts Stolen . | . Parts Stripped . | . Power Chain Reactions . | . Alert | -11 ------- Run | Yrd Peak Influence 20 | 20 Initial . | . Average 2 | 2 Maximum Alert Level . | . Low Security (%) 100 | 100 Level 1 . | . Level 2 . | . Level 3 . | . Level 4 . | . Level 5 . | . High Security . | . Max Security . | . Squads Dispatched . | . Investigation . | . Extermination . | . Reinforcement . | . Assault . | . Garrison . | . Intercept . | . Searches Triggered . | . Construction Impeded . | . Haulers Reinforced . | . Active Scanning Responses . | . Cargo Convoy Interrupts . | . Stealth | -11 --------- Run | Yrd Distress Signals . | . Communications Jammed . | . Distress Signals . | . Times Spotted 14 | 14 Peak Tracking Total 20 | 20 Tactical Retreats 1 | 1 Traps | -11 ------- Run | Yrd Traps Triggered . | . Indirectly . | . Trap Hack Attempts . | . Triggered . | . Disarmed . | . Reprogrammed . | . Reused . | . Traps Extracted . | . Installed . | . Triggered . | . Machines | -11 ---------- Run | Yrd Machines Disabled . | . Max in Single Turn . | . Machines Repaired . | . Machines Dismantled . | . Machines Sabotaged . | . Overloaded Fab Kills . | . Hacking | -11 --------- Run | Yrd Machines Accessed . | . Terminals . | . Fabricators . | . Repair Stations . | . Recycling Units . | . Scanalyzers . | . Garrison Access . | . Total Hacks . | . Successful . | . Failed . | . Catastrophic . | . Database Lockouts . | . Manual . | . Terminals . | . Fabricators . | . Repair Stations . | . Recycling Units . | . Scanalyzers . | . Garrison Access . | . Terminal Hacks . | . Fabricator Hacks . | . Repair Station Hacks . | . Recycling Unit Hacks . | . Scanalyzer . | . Garrison Access Hacks . | . Unauthorized Hacks . | . Terminals . | . Fabricators . | . Repair Stations . | . Recycling Units . | . Scanalyzers . | . Garrison Access . | . Data Cores Recovered . | . Used . | . Hacking Detections . | . Full Trace Events . | . Feedback Events . | . Feedback Blocked . | . Robot Schematics Acquired . | . Robots Built . | . Authchips . | . Time . | . Total Robot Build Rating . | . Part Schematics Acquired . | . Parts Built . | . Authchips . | . Time . | . Total Part Build Rating . | . Parts Repaired . | . Time . | . Parts Recycled . | . Recycled Matter . | . Retrieved Matter . | . Retrieved Components . | . Parts Scanalyzed . | . Part Schematics Acquired . | . Parts Damaged . | . Bothacking | -11 ------------ Run | Yrd Used RIF Installer . | . Robots Hacked . | . Non-combat . | . Combat . | . Robot Hacks Applied . | . Relay Couplers Released . | . Fabnet Peak Effective % . | . Robots Rewired . | . Allies Hacked . | . Hacks Repelled . | . Allies | -11 -------- Run | Yrd Total Allies . | . Largest Group . | . Highest-Rated Group . | . Highest-Rated Ally . | . Total Orders . | . Ally Attacks . | . Total Damage . | . Kills . | . Allies Corrupted . | . Allies Melted . | . Intel | -11 ------- Run | Yrd Robot Analysis Total . | . Derelict Logs Recovered . | . Drone Launches . | . Drone Recoveries . | . Exploration | -11 ------------- Run | Yrd Turns Passed 3869 | 3869 Spaces Moved 720 | 720 Core 8 | 8 Treads . | . Legs . | . Wheels 712 | 712 Hover . | . Flight . | . Fastest Speed 50 | 50 Average Speed 89 | 89 Slowest Speed 100 | 100 Overloaded Moves . | . Propulsion Burnouts . | . Robots Hopped . | . Cave-ins Triggered . | . Exploration Rate (%) 87 | 87 Regions Visited . Branch Regions . Pre-discovered Areas . | . Known Exits Taken . | . Unknown Exits Taken . | . Scrap Searched . | . Spaces Dug . | . Terrain Destroyed 1 | 1 Melee . | . Projectile 1 | 1 AOE . | . Terrain Rammed . | . Walls Destroyed . | . Machines Disabled . | . Actions | -11 --------- Run | Yrd Total 3880 | 3880 Wait 3093 | 3093 Move 720 | 720 Hop . | . Pick Up . | . Fast Attach 7 | 7 Attach . | . Detach . | . Swap . | . Drop . | . Fire 52 | 52 Melee . | . Ram 8 | 8 Kick . | . Crush . | . Escape Stasis . | . Rewire . | . Trap . | . Miscellaneous . | . Route ------- -11/Scrapyard (discovered 1 exit: [*Mat]) History --------- Turn | Location | Event 4 | -11/Scrapyard | Discovered new exit (range 15) 3829 | -11/Scrapyard | Assembled infested the area 3867 | -11/Scrapyard | Core integrity fell below 50% 3870 | -11/Scrapyard | Core integrity fell below 20% 3870 | -11/Scrapyard | Destroyed by as-74613 with Assembled Rifle Last Messages --------------- 03444_ K-01 Serf collects debris. 03528_ Acquired Mining Laser. 03530_ Acquired 10 matter. 03829_ ALERT: Infestation in the scrapyard, dispatching Demolisher response squad. [Achievement: Curiosity Killed The Cat] 03839_ Mining Laser destroyed. 03846_ T-07 Excavator destroyed. 03855_ Seismic Detector destroyed. 03857_ Imp. Terrain Scanner destroyed. 03860_ as-06824 destroyed. 03860_ Lgt. Ion Engine destroyed. 03861_ Sml. Laser destroyed. 03861_ Wheel destroyed. 03862_ Slammed into as-78546. 03862_ Com. Wheel destroyed. 03863_ Slammed into as-78546. 03866_ Destabilizing: System corrupted (+2). 03867_ Slammed into as-78546. 03869_ as-78546 destroyed. Map ----- +----------------------------------------------------+ | ??????????????????????##?#???## " #??????##??? | | ????????#?#?##########??#?#?#?# " #?????????#? | | ????#??#???## #??##????## ###?????#????? | | ???????????## ###?######### #####?#?????##? | | ????????????# #?##?# # ############?#?? | | ?????#??????# ##???# ## #?#??? | | ????#?????### ##???# # # #?#??? | | ????#????#?## ###### # ##??#? | | ??????#???#?# # # #????? | | ?????????#?## # ###### # # #?#?#? | | ????????###?# #####?######## # #????? | | ???????????## ?###?######### # #????# | | ?????????#?## #???# # # ##???# | | ?????????#??# ???## # # ##?#??# | | ????????????# #### ####???#?? | | ?#?????????## #########?# # #?#######? | | ###?????????# # # # ### # #? | | ?###????????# ## ###### ### # #? | | ??##????#?????# ## ##### ## #? | | ##?#???????????? ## ########?? | | ?#???#??#??????? # a |!* ## ## #?? | | ?????#?????????????? ?? # a#####%= ## #? ### | | #?###?#?#?????????????? #aa##?### #### # ### | | ###?##????????#??????#??#aa###### #### # #?? | | ###??#######????????#???#aa# # # #?# | | #### #???????????##@a# #?? | | ## #?#??????????#%%# % # ########## | | ## #????????????#% # # ! # # | | ## ##???????##?############### # | | ## #???#?????????###?#??#?#### # | | ##? ?#???????????#?#?########?# # | | # ###### ######?????#?########?####?## #% | | #??#?#???####???#?#??### | | #?#?###??#?#?##?#?###?## # | | ######## ### #???##????###????####### # | | #? ? ## #???#?#?????#####?###### ########## | | #? ? ## ###???############?## =% = #?##### | | ## ? ## #?##???# * ##?##=%! ####### | | ### ## ##?#???# = ##### ####### | | ########### ####### ##### | | ! = | | [ =[ ### ### | | ########### ####### ##### < # # | | #?#??#?##### #######?# = ##??# # # | | ???#???# ### ############## # | | #??##### ###### ############?#### # | | ?????#?# ##??## # ####?## # | | ?#?###?# ###?## # ###??## # | | ####?#?# ##?#?# ##?#### # | | ?####### #????# # ##?#?##### ## | +----------------------------------------------------+ Best States ------------- Heat Dissipation 25 Energy Generation 10 Energy Capacity 125 Matter Stores 300 Matter Capacity 300 Sight Range 16 Terrain Scan Range 16 Terrain Scan Density 10 Evasion (%) 42 Item Schematics ----------------- None Robot Schematics ------------------ None Fabricated ------------ Nothing Alien Tech Used ----------------- None Achievements -------------- Curiosity Killed The Cat Challenges ------------ None Game ------ Seed ZhirovSupersonicPerforator Manual? 0 Play Time 00:16:50 Cumulative 84.0 hours Start 2024.08.05 @ 20:39:10 End 2024.08.05 @ 20:47:37 Sessions 0 Manual Loads 0 Difficulty Rogue Special Mode None Game No. 26 Rogue 26 Adventurer 0 Explorer 0 Win Type - Total 0 Types 0/0/0/0/0/0/0/0/0 Lore% 33 Gallery% 51 Achievement% 39 Wizard Run 0 Options --------- Layout 0 ASCII 0 Keyboard 1 Movement Arrows Keybinds 0 Fullscreen 2 Font 36/Terminus++ Map View 76x50 Zoom Use 0% Tactical HUD 1 Map Filters NONE Filters NONE Steam 1 RUN: 04f966cd-184d-4d9f-a946-28ee901828cc